Cogmind - Beta 11 @@@ ROGUE MODE // 2022.03.29 @ 18:28:58 Player: Qirby Result: Destroyed by G-34 Mercenary with Small Laser Performance ------------- Evolutions (0) 0 Regions Visited (1) 200 Robots Destroyed (17) 85 Value Destroyed (335) 335 Prototype IDs (0) 0 Alien Tech Used (0) 0 Bonus (0) 0 TOTAL SCORE: 620 Bonus ------- None Cogmind --------- Core Integrity 0/250 Matter 290/300 Energy 61/125 System Corruption 0% Temperature Cool (55) Movement Walking (120) Location -10/Materials Parts ------- > --- POWER (1) -------- Light Ion Engine > --- PROPULSION (2) --- Aluminum Leg Aluminum Leg > --- UTILITY (2) ------ Small Storage Unit Signal Interpreter > --- WEAPON (2) ------- Medium Laser Medium Laser > --- INVENTORY (8) ---- Aluminum Leg Aluminum Leg Signal Interpreter Peak State ------------ > --- POWER ------------ Ion Engine > --- PROPULSION ------- Aluminum Leg Aluminum Leg > --- UTILITY ---------- Small Storage Unit Signal Interpreter > --- WEAPON ----------- Assault Rifle Light Assault Rifle > --- INVENTORY -------- (None) [Rating: 7] Favorites ----------- Power Ion Engine Engine Ion Engine Propulsion Aluminum Leg Leg Aluminum Leg Utility Small Storage Unit Storage Small Storage Unit Processor Signal Interpreter Weapon Assault Rifle Energy Gun Medium Laser Energy Cannon Beam Cannon Ballistic Gun Assault Rifle Build | -11 -10 ------- Run | Scr Mat Slots Evolved . | . . Power . | . . Propulsion . | . . Utility . | . . Weapon . | . . Parts Attached 19 | 6 13 Power 2 | 1 1 Engine 2 | 1 1 Core . | . . Reactor . | . . Propulsion 7 | 2 5 Treads . | . . Leg 7 | 2 5 Wheel . | . . Hover . | . . Flight . | . . Utility 2 | 1 1 Device . | . . Storage 1 | 1 . Processor 1 | . 1 Hackware . | . . Protection . | . . Artifact . | . . Weapon 8 | 2 6 Energy Gun 4 | . 4 Energy Cannon 1 | . 1 Ballistic Gun 3 | 2 1 Ballistic Cannon . | . . Launcher . | . . Special Weapon . | . . Impact Weapon . | . . Slashing Weapon . | . . Piercing Weapon . | . . Special Melee Weapon . | . . Unidentified Prototypes . | . . Parts Lost 5 | . 5 Power 1 | . 1 Propulsion 2 | . 2 Utility . | . . Weapon 2 | . 2 Highest Loss Streak 3 | . 3 To Critical Strikes . | . . Average Slot Usage (%) 94 | . 94 Engine 14 | . 14 Leg 27 | . 27 Storage 14 | . 14 Processor 10 | . 10 Energy Gun 8 | . 8 Energy Cannon 3 | . 3 Ballistic Gun 14 | . 14 Naked Turns . | . . Heaviest Build 15 | 13 15 Greatest Support 20 | 20 20 Greatest Overweight (x) . | . . Average Overweight (x) . | . . Largest Inventory Capacity 8 | 8 8 Average Capacity 7 | 6 8 Most Carried 5 | 4 5 Average Carried 1 | . 1 Final Capacity 8 | 8 8 Final Carried 3 | . 3 Class Distribution -------------------- 100% | Mutant Dominant Class ---------------- Mutant | -10/Materials Resources | -11 -10 ----------- Run | Scr Mat Matter Collected 441 | 262 179 Remotely . | . . Salvage Created 556 | 133 423 Parts 40 | 7 33 Haulers Intercepted . | . . Recyclers Shooed . | . . Parts Field Recycled . | . . Retrieved Matter . | . . Parts Self-Destructed . | . . Prevented . | . . Kills | -11 -10 ------- Run | Scr Mat Combat Hostiles Destroyed 8 | . 8 Guns 6 | . 6 Cannons 2 | . 2 Classes Destroyed 6 | 2 4 Builder 2 | . 2 Tunneler 3 | 2 1 Recycler 1 | 1 . Watcher 3 | . 3 Swarmer 2 | . 2 Grunt 6 | . 6 Best Kill Streak 8 | 3 8 Combat Bots Only 6 | . 6 Max Kills in Single Turn 2 | 1 2 Gunslinging 1 | . 1 Exploded . | . . Melee . | . . Uniques/NPCs Destroyed . | . . Combat | -11 -10 -------- Run | Scr Mat Damage Taken 966 | . 966 Core 251 | . 251 Absorbed by Shields . | . . Core Remaining (%) 100 | 100 . Volleys Fired 47 | 6 41 Largest 2 | 2 2 Hottest 110 | 40 110 Shots Fired 79 | 12 67 Gun 64 | 12 52 Cannon 15 | . 15 Launcher . | . . Special . | . . Kinetic 34 | 12 22 Thermal 45 | . 45 Explosive . | . . Electromagnetic . | . . Robot Hit Streak 7 | 4 7 Robot Miss Streak 3 | 2 3 Penetration Max . | . . Secondary Targets 2 | . 2 Max Gunslinging Chain 1 | . 1 Shots Hit Robots 42 | 6 36 Core Hits 25 | 5 20 Critical Kills . | . . Critical Parts Destroyed . | . . Critical Strikes 2 | . 2 Burn 2 | . 2 Melee Attacks . | . . Impact . | . . Slashing . | . . Piercing . | . . Sneak Attacks . | . . Combat Hostiles . | . . Follow-up Attacks . | . . Damage Inflicted 626 | 69 557 Guns 454 | 69 385 Cannons 158 | . 158 Explosions . | . . Melee . | . . Ramming 14 | . 14 Kinetic 212 | 69 143 Thermal 400 | . 400 Explosive . | . . Electromagnetic . | . . Impact . | . . Slashing . | . . Piercing . | . . Highest Corruption . | . . Average Corruption . | . . Corruption Purged . | . . Corruption Blocked . | . . Overload Shots . | . . Overflow Damage 1 | . 1 Projectiles 1 | . 1 Explosions . | . . Melee . | . . Knockbacks . | . . Impact . | . . Kinetic . | . . Secondary . | . . Self-Inflicted Damage . | . . Shots . | . . Rammed . | . . Targets Rammed 2 | . 2 Kicked 2 | . 2 Crushed . | . . Highest Temperature 380 | . 380 Average Temperature 175 | . 175 Received Heat Transfer 408 | . 408 Effects 4 | . 4 Shutdowns 1 | . 1 Energy Bleed 1 | . 1 Interference 2 | . 2 Siege Activations . | . . Robots Corrupted . | . . Combat Hostiles . | . . Parts Fried . | . . Impact Corruptions . | . . Robots Melted . | . . Combat Hostiles . | . . Parts Melted 2 | . 2 Heat Transferred 1184 | . 1184 Parts Sabotaged . | . . Parts Stolen . | . . Parts Stripped . | . . Power Chain Reactions . | . . Missiles Intercepted . | . . Alert | -11 -10 ------- Run | Scr Mat Peak Influence 153 | 15 153 Initial 9 | . 9 Average 49 | 4 57 Maximum Alert Level . | . . Low Security (%) 100 | 100 100 Level 1 . | . . Level 2 . | . . Level 3 . | . . Level 4 . | . . Level 5 . | . . High Security . | . . Max Security . | . . Squads Dispatched 3 | . 3 Investigation 1 | . 1 Extermination . | . . Reinforcement 2 | . 2 Assault . | . . Garrison . | . . Intercept . | . . Searches Triggered . | . . Construction Impeded . | . . Haulers Reinforced . | . . Active Scanning Responses . | . . Cargo Convoy Interrupts . | . . Stealth | -11 -10 --------- Run | Scr Mat Distress Signals 1 | . 1 Communications Jammed . | . . Distress Signals . | . . Times Spotted 17 | . 17 Peak Tracking Total 6 | . 6 Tactical Retreats . | . . Traps | -11 -10 ------- Run | Scr Mat Traps Triggered . | . . Indirectly . | . . Trap Hack Attempts . | . . Triggered . | . . Disarmed . | . . Reprogrammed 6 | . 6 Reused 1 | . 1 Traps Extracted . | . . Installed . | . . Triggered 1 | . 1 Machines | -11 -10 ---------- Run | Scr Mat Machines Disabled . | . . Max in Single Turn . | . . Machines Sabotaged . | . . Garrisons Compromised . | . . Overloaded Fab Kills . | . . Hacking | -11 -10 --------- Run | Scr Mat Machines Accessed 2 | . 2 Terminals 1 | . 1 Fabricators . | . . Repair Stations . | . . Recycling Units 1 | . 1 Scanalyzers . | . . Garrison Access . | . . Total Hacks 5 | . 5 Successful 2 | . 2 Failed 3 | . 3 Catastrophic . | . . Database Lockouts . | . . Manual . | . . Terminals 4 | . 4 Fabricators . | . . Repair Stations . | . . Recycling Units 1 | . 1 Scanalyzers . | . . Garrison Access . | . . Terminal Hacks 1 | . 1 Reprogram Traps 1 | . 1 Fabricator Hacks . | . . Repair Station Hacks . | . . Recycling Unit Hacks 1 | . 1 Retrieve Components 1 | . 1 Scanalyzer . | . . Garrison Access Hacks . | . . Unauthorized Hacks . | . . Terminals . | . . Fabricators . | . . Repair Stations . | . . Recycling Units . | . . Scanalyzers . | . . Garrison Access . | . . Data Cores Recovered . | . . Used . | . . Hacking Detections 1 | . 1 Full Trace Events 1 | . 1 Feedback Events . | . . Feedback Blocked . | . . Robot Schematics Acquired . | . . Robots Built . | . . Authchips . | . . Time . | . . Total Robot Build Rating . | . . Part Schematics Acquired . | . . Parts Built . | . . Authchips . | . . Time . | . . Total Part Build Rating . | . . Parts Repaired . | . . Time . | . . Parts Recycled . | . . Recycled Matter . | . . Retrieved Matter . | . . Retrieved Components 2 | . 2 Parts Scanalyzed . | . . Part Schematics Acquired . | . . Parts Damaged . | . . Bothacking | -11 -10 ------------ Run | Scr Mat Used RIF Installer . | . . Robots Hacked . | . . Non-combat . | . . Combat . | . . Robot Hacks Applied . | . . Relay Couplers Released . | . . Fabnet Peak Effective % . | . . Robots Rewired . | . . Allies Hacked . | . . Hacks Repelled . | . . Allies | -11 -10 -------- Run | Scr Mat Total Allies . | . . Largest Group . | . . Highest-Rated Group . | . . Highest-Rated Ally . | . . Total Orders . | . . Ally Attacks . | . . Total Damage . | . . Kills . | . . Allies Corrupted . | . . Allies Melted . | . . Intel | -11 -10 ------- Run | Scr Mat Robot Analysis Total . | . . Derelict Logs Recovered . | . . Drone Launches . | . . Drone Recoveries . | . . Exploration | -11 -10 ------------- Run | Scr Mat Turns Passed 529 | 80 449 Spaces Moved 321 | 59 262 Core 26 | 26 . Treads . | . . Legs 295 | 33 262 Wheels . | . . Hover . | . . Flight . | . . Fastest Speed 50 | 50 120 Average Speed 114 | 89 120 Slowest Speed 120 | 120 120 Overloaded Moves . | . . Propulsion Burnouts . | . . Robots Hopped . | . . Cave-ins Triggered . | . . Exploration Rate (%) 28 | 4 53 Regions Visited 1 Branch Regions . Pre-discovered Areas . | . . Known Exits Taken . | . . Unknown Exits Taken 1 | 1 . Scrap Searched . | . . Spaces Dug . | . . Terrain Destroyed . | . . Melee . | . . Projectile . | . . AOE . | . . Terrain Rammed . | . . Walls Destroyed . | . . Machines Disabled . | . . Actions | -11 -10 --------- Run | Scr Mat Total 403 | 74 329 Wait 2 | . 2 Move 320 | 58 262 Hop . | . . Pick Up 10 | 4 6 Fast Attach 5 | 2 3 Attach 8 | 4 4 Detach . | . . Swap 6 | . 6 Drop 3 | . 3 Fire 47 | 6 41 Melee . | . . Ram . | . . Kick 2 | . 2 Crush . | . . Escape Stasis . | . . Rewire . | . . Trap . | . . Miscellaneous . | . . Route ------- -11/Scrapyard -10/Materials (discovered 2 exits: *Min x2) History --------- Turn | Location | Event 4 | -11/Scrapyard | Discovered new exit (range 15) 81 | -11/Scrapyard | Entered Materials 146 | -10/Materials | Discovered new exit (range 12) 221 | -10/Materials | Identified exit to Mines 310 | -10/Materials | Build established: Mutant 464 | -10/Materials | Core integrity fell below 50% 507 | -10/Materials | Core integrity fell below 20% 510 | -10/Materials | Discovered exit to Mines (range 15) 530 | -10/Materials | Destroyed by G-34 Mercenary with Small Laser Last Messages --------------- 00502_ K-01 Serf collects debris. 00507_ G-34 Mercenary suffers critical hit (Burn). 00507_ Sml. Laser melted. 00507_ G-34 Mercenary destroyed. 00508_ Acquired 43 matter. 00508_ K-01 Serf collects debris. 00509_ Overheating: Energy bleed (-30). 00509_ R-06 Scavenger collects Flight Unit. 00510_ EXIT=FOUND: MINES 00512_ K-01 Serf collects debris. 00512_ Aluminum Leg destroyed. 00513_ Acquired Aluminum Leg. 00515_ K-01 Serf collects debris. 00518_ Acquired 20 matter. 00520_ Ion Engine destroyed. 00522_ K-01 Serf collects debris. 00524_ Acquired 10 matter. 00525_ K-01 Serf collects debris. 00528_ Acquired Lgt. Ion Engine. 00528_ K-01 Serf collects debris. Map ----- +----------------------------------------------------+ | ?????????????????????????????????????? | | ?????????????????????????????????????? | | ?????????????????????????????????????? | | ?????????????????????????????????????? | | ?????????????????????????????????????? | | ?????????????????????????????????????? | | ??????? ????????????????????????????? | | ????? > ???????????????????????????? | | ????? ???????????????????????????? | | ????? ??????????##???????????????? | | ?????? ????????? ????????????????? | | ??????# ???????? ?????????????????? | | ??????# ######## ??????????????????? | | ??????# [= ???????????????????? | | ??????+ [= ????????????????????? | | ??????# =! ?????????????????????? | | ??????# o#?????????????????????? | | ??????# / #?????????????????????? | | ??????# #?????????####????????? | | ??????# !=!#??######## ""????????? | | ??????# = !%#? # "T"???????? | | ????####+###!%*# # ???????? | | ????# %[#=%=# !# ???????? | | ????# "T"*|+ %|+ #? ???????? | | ????# !%!#=%k###########?? ???????? | | ????# [#!@!# ####+######## | | ????#[ #% k# ## ## | | ????# #g g# ! ## ! ##! "" | | ????###+#### # + ! %!+ |"" | | ??????# ???# + """ ## % ##= "" | | ??????#????# # """ ## ! ## | | ???????????# # """ "T" ####=#### "" | | ???????????# # """ #??# #??# "" | | ?????????? ###########??#*#??# "" | | ????????? ???????????? =#??# | | ???????? ???????????? #??#"" | | ???????##+######??????????? #??#"Y = | | ??????????????????????????? #??#"" | | ??????????????????????????" #??# = | | ?????????????????????????? #??####+ | | ????????????????????????? #????# | | ?????????????????????????#### ?????# | | ????????????????????????????? ?????# | | ????????????????????????????? ?????# | | ????????????????????????????? ?????# | | ????????????????????????????? ?????# | | ????????????????????????????? ?????# | | ????????????????????????????? ?????# | | ???????????????????????????????????# | | ???????????????????????????????????# | +----------------------------------------------------+ Best States ------------- Heat Dissipation 25 Energy Generation 10 Energy Capacity 250 Matter Stores 300 Matter Capacity 300 Sight Range 16 Terrain Scan Density 10 Evasion (%) 55 Item Schematics ----------------- None Robot Schematics ------------------ None Fabricated ------------ Nothing Alien Tech Used ----------------- None Achievements -------------- None Challenges ------------ None Game ------ Seed Qirby Manual? 1 Play Time 00:10:23 Cumulative 11.8 hours Start 2022.03.29 @ 18:00:20 End 2022.03.29 @ 18:28:58 Sessions 1 Manual Loads 0 Difficulty Rogue Special Mode None Game No. 17 Rogue 17 Adventurer 0 Explorer 0 Win Type - Total 0 Types 0/0/0/0/0/0/0/0/0 Lore% 16 Gallery% 16 Achievement% 15 Wizard Run 0 Options --------- ASCII 1 Keyboard 0 Movement Mouse Keybinds 0 Fullscreen 1 Font 14/Terminus Map View 84x54 Tactical HUD 1 Map Filters NONE Filters NONE Steam 1 RUN: 5e27408a-079e-466e-b66f-ceaabc0284aa